fUSD/lending_fUSD_20240719
["ID","MTS","AMOUNT","RATE_DAILY","PERIOD"]
[332630687,1721376642592,-500.0,0.00033013,7]
[332630688,1721376642602,-1092.72,0.00033013,14]
[332630689,1721376642611,-1142.38,0.00033013,14]
[332630690,1721376642621,-200.0,0.00033013,7]
[332630691,1721376642630,-261.68,0.00033013,2]
[332630692,1721376642640,-1000.0,0.00033013,14]
[332630693,1721376642650,-150.0,0.00033013,7]
[332630694,1721376642661,-1143.36,0.00033013,30]
[332630695,1721376642671,-2079.97,0.00033013,14]
[332630696,1721376642680,-150.0,0.00033013,7]
[332630697,1721376642690,-150.0,0.00033013,7]
[332630698,1721376642700,-150.0,0.00033013,7]
[332630699,1721376642710,-572.28891,0.00033013,2]
[332630700,1721376642720,-150.69730381,0.00033013,7]
[332630701,1721376642730,-150.0,0.00033013,7]
[332630702,1721376642739,-150.57964353,0.00033013,7]
[332630703,1721376642749,-150.0,0.00033013,7]
[332630704,1721376642759,-150.0,0.00033013,7]
[332630705,1721376642769,-150.0,0.00033013,7]
[332630706,1721376642779,-150.0,0.00033013,7]
[332630707,1721376642788,-150.29560903,0.00033013,7]
[332630708,1721376642798,-500.0,0.00033013,14]
[332630709,1721376642809,-1179.75,0.00033013,14]
[332630710,1721376642818,-1444.69,0.00033013,2]
[332630711,1721376642828,-16966.1351997,0.00033016,2]
[332630712,1721376642840,-1227.9148343,0.00033016,2]
[332630713,1721376642850,-10955.4849267,0.00033016,2]
[332630714,1721376642860,-1685.9256383,0.00033016,2]
[332630715,1721376642871,-259.90060988,0.00033016,2]
[332630716,1721376642882,-212.63295496,0.00033026,7]
[332630717,1721376642891,-207.61030166,0.00033039,5]
[332630718,1721376642901,-163.36125358,0.0003305,6]
[332630719,1721376642911,-150.77817906,0.0003305,2]
[332630720,1721376642922,-332.53166395,0.00033066,15]
[332630721,1721376642933,-13652.7896561,0.00033127,2]
[332630722,1721376642943,-1227.9148343,0.00033127,2]
[332630723,1721376642952,-3498.66522387,0.00033127,2]
[332630726,1721376643709,-3385.06282993,0.00033127,2]
[332630727,1721376643760,-500.0,0.00033127,2]
[332630728,1721376643773,-681.43362743,0.00033127,2]
[332630730,1721376643787,-750.80786777,0.00033127,2]
[332630731,1721376643797,-3621.02882917,0.00033149,30]
[332630733,1721376643814,-771.144,0.00033149,30]
[332630736,1721376643827,-1659.03255927,0.00033149,30]
[332630738,1721376643842,-677.49,0.00033149,30]
[332630740,1721376643854,-3106.99666799,0.00033149,30]
[332630744,1721376644004,-520.0,0.00033016,5]
[332630745,1721376644015,-16439.99999996,0.00033149,30]
[332630746,1721376644027,-12393.01232677,0.00033149,30]
[332630747,1721376644040,-543.69150453,0.00033149,30]
[332630748,1721376644053,-3557.93768484,0.00033149,30]
[332630762,1721377519850,709.39778734,9e-05,2]
[332630763,1721377545996,284.95643458,0.0002,10]
[332630767,1721377682712,3397.27695479,0.0001,2]
[332630793,1721377831548,-2206.7604789,0.00012121,2]
[332630794,1721377831608,-484.39986485,0.00012121,2]
[332630795,1721377831618,-211.83870341,0.0001305,2]
[332630796,1721377831627,-934.54460571,0.0001378,2]
[332630797,1721377831637,-150.0,0.00013879,2]
[332630798,1721377831646,-2865.30971484,0.0001388,2]
[332630799,1721377831659,-99788.20243554,0.0001388,2]
[332630800,1721377831668,-662.16661048,0.0001388,2]
[332630801,1721377831677,-162.3999725,0.000139,2]
[332630802,1721377831686,-934.54460572,0.000139,2]
[332630803,1721377831696,-316.48281963,0.0001399,2]
[332630804,1721377831705,-179.89189734,0.0001399,2]
[332630805,1721377831717,-150.48172675,0.00013999,2]
[332630806,1721377831726,-153115.83109628,0.00014,2]
[332630807,1721377831829,-4843.30926104,0.00014,2]
[332630827,1721377837524,-267143.03541214,0.00014,2]
[332630828,1721377837639,-307972.32210063,0.00014,2]
[332630829,1721377837650,-1014.6173005,0.00014,2]
[332630830,1721377837698,-5233.68,0.00014,2]
[332630831,1721377837758,-23575.68937271,0.00014,2]
[332630832,1721377837769,-3182.65546292,0.00014,2]
[332630833,1721377837819,-1544.59791416,0.00014,2]
[332630835,1721377837830,-253.70482749,0.00014,2]
[332630836,1721377837840,-1067.7723143,0.00014,2]
[332630837,1721377837855,-2003.76061887,0.00014,2]
[332630838,1721377837866,-4997.10813768,0.00014,2]
[332630854,1721377839726,-635.90023275,0.00014,2]
[332630855,1721377839948,-6349.70000002,0.00014,2]
[332630856,1721377840008,-354384.03342799,0.00014,2]
[332630857,1721377840017,-323.68577509,0.000149,2]
[332630858,1721377840027,-24164.52578964,0.00015,2]
[332630859,1721377840040,-130254.3964934,0.00015,2]
[332630860,1721377840053,-52291.30636703,0.00015,2]
[332630899,1721377842602,-1279.78210425,0.00015,2]
[332630900,1721377842769,-1832.71645702,0.00015,2]
[332630901,1721377842828,-265.0116158,0.00015,2]
[332630902,1721377842840,-1168.580067,0.00015,2]
[332631062,1721377845560,-2252.53001307,0.00015,2]
[332631064,1721377845574,-1528.6520784,0.00015,2]
[332631066,1721377845587,-511.85185807,0.00015,2]
[332631076,1721377845677,-5152.90495307,0.00015,2]
[332631079,1721377845690,-36866.90749795,0.00015,2]
[332631083,1721377845704,-62656.64133872,0.00015,2]
[332631086,1721377845717,-773.54743472,0.00015,2]
[332631089,1721377845731,-1216.07779227,0.00015,2]
[332631093,1721377845744,-276.74094249,0.00015,2]
[332631106,1721377845866,-1765.8943588,0.00015,2]
[332631113,1721377845925,-497.75,0.00015,2]
[332631165,1721379031710,-624.21,0.0001262,2]
[332631166,1721379031721,-162.14215493,0.00014784,2]
[332631168,1721379031732,-624.21,0.00014883,2]
[332631169,1721379031741,-782.6727,0.000149,2]
[332631171,1721379031751,-162.14215493,0.000149,2]
[332631173,1721379031760,-1248.15989915,0.000149,2]
[332631175,1721379031771,-696.2631349,0.000149,2]
[332631177,1721379031783,-915.01877901,0.000149,2]
[332631178,1721379031794,-339.85299,0.000149,2]
[332631180,1721379031806,-402.03566975,0.000149,2]
[332631182,1721379031818,-3317.59,0.000149,2]
[332631184,1721379031829,-6872.04892719,0.000149,2]
[332631186,1721379031838,-118.34082034,0.000149,2]
[332631188,1721379031853,-1283.10007966,0.000149,2]
[332631189,1721379031862,-26667.43240501,0.0001499,2]
[332631191,1721379031873,-1546.90939941,0.0001499,2]
[332631193,1721379031885,-336.67668818,0.0001499,2]
[332631195,1721379031896,-259.37769393,0.0001499,2]
[332631197,1721379031907,-789.29286824,0.0001499,2]
[332631198,1721379031918,-468.09747962,0.0001499,2]
[332631200,1721379031930,-1163.01399554,0.0001499,2]
[332631201,1721379031939,-1011.64476456,0.00014999,2]
[332631203,1721379031948,-968.22216338,0.00014999,2]
[332631204,1721379031963,-1679.0930051,0.00014999,2]
[332631205,1721379031974,-1502.92032109,0.00014999,2]
[332631213,1721379032071,-931.62643857,0.00014999,2]
[332631215,1721379032080,-150.0,0.00014999,2]
[332631217,1721379032089,-25778.86940947,0.00015,2]
[332631234,1721379037820,-880.12,0.00015,2]
[332631235,1721379037831,-5207.04,0.00015,2]
[332631236,1721379037878,-955.97027776,0.00015,2]
[332631237,1721379037888,-4936.4916975,0.00015,2]
[332631238,1721379037899,-2879.31648734,0.00015,2]
[332631239,1721379037910,-3074.74985537,0.00015,2]
[332631240,1721379037920,-24905.25111142,0.00015,2]
[332631241,1721379037936,-527.99648139,0.00015,2]
[332631242,1721379037994,-13155.43099431,0.00015,2]
[332631243,1721379038006,-3768.53644233,0.00015,2]
[332631244,1721379038052,-4677.82886025,0.00015,2]
[332631245,1721379038063,-853.08727691,0.00015,2]
[332631246,1721379038109,-1900.0,0.00015,2]
[332631247,1721379038119,-1765.0,0.00015,2]
[332631248,1721379038171,-1857.14049247,0.00015,2]
[332631249,1721379038182,-451.57864314,0.00015,2]
[332631258,1721379040156,-300.0,0.00015,2]
[332631259,1721379040167,-663.40789983,0.00015,2]
[332631260,1721379040177,-13014.6,0.00015,2]
[332631266,1721379042807,-1951.95,0.00015,2]
[332631269,1721379042863,-690.07043219,0.00015,2]
[332631272,1721379042880,-295.464,0.00015,2]
[332631273,1721379042919,-6970.49824325,0.00015,2]
[332631274,1721379043031,-353.19738211,0.00015,2]
[332631283,1721379045801,-33312.16224766,0.00015,2]
[332631285,1721379045811,-30094.96320048,0.00015,2]
[332631287,1721379045823,-5872.55102109,0.00015,2]
[332631289,1721379045914,-1888.66293104,0.00015,2]
[332631290,1721379045926,-654.74,0.00015,2]
[332631291,1721379045938,-348.93,0.00015,2]
[332631292,1721379045973,-1127.60836089,0.00015,2]
[332631293,1721379045984,-1113.97937743,0.00015,2]
[332631348,1721379108238,3760.0,0.0002,10]
[332631371,1721380231958,-300.0,0.00013488,2]
[332631372,1721380231969,-109.18770388,0.00013489,2]
[332631373,1721380232018,-787.72537109,0.00013489,2]
[332631374,1721380232030,-753.09403611,0.00013489,2]
[332631375,1721380232042,-618.86,0.00013489,2]
[332631376,1721380232379,-914.70934891,0.00013489,2]
[332631377,1721380232400,-7342.21489322,0.00013489,2]
[332631378,1721380232410,-9255.41024212,0.00013799,2]
[332631379,1721380232419,-160.27755314,0.00013896,2]
[332631380,1721380232429,-1266.87800095,0.00013896,2]
[332631381,1721380232438,-6388.8422804,0.00013899,2]
[332631382,1721380232449,-587.06,0.0001419,2]
[332631383,1721380232458,-182.51369606,0.00014451,2]
[332631384,1721380232467,-160.81964938,0.00014519,2]
[332631385,1721380232476,-155.30467283,0.00014579,2]
[332631386,1721380232485,-300.0,0.00014579,2]
[332631387,1721380232494,-579.1,0.00014896,2]
[332631388,1721380232503,-155.85,0.0001498,2]
[332631389,1721380232512,-299.99,0.0001498,2]
[332631390,1721380232521,-1326.95272886,0.00014988,2]
[332631391,1721380232530,-150.0,0.00014999,2]
[332631392,1721380232540,-6259.93725235,0.00015,2]
[332631393,1721380232549,-2558.04,0.00015,2]
[332631394,1721380232558,-150.99,0.00015,2]
[332631395,1721380232567,-2359.75,0.00015,2]
[332631396,1721380232576,-876.8,0.00015,2]
[332631397,1721380232585,-1192.26857,0.00015,2]
[332631398,1721380232595,-150.0,0.00015,2]
[332631399,1721380232605,-160.27755312,0.0001527,2]
[332631400,1721380232614,-1243.5,0.0001527,2]
[332631401,1721380232623,-1176.03875563,0.00015359,2]
[332631402,1721380232633,-499.99,0.00015369,2]
[332631403,1721380232642,-9999.99,0.00015369,2]
[332631404,1721380232651,-17864.81,0.00015369,2]
[332631405,1721380232660,-3858.59894812,0.00015369,2]
[332631406,1721380232670,-457.03001926,0.00015897,2]
[332631407,1721380232681,-1000.0,0.00015909,2]
[332631408,1721380232693,-2309.73,0.00015909,2]
[332631409,1721380232702,-3430.10018639,0.00015912,2]
[332631410,1721380232711,-23900.0,0.00015987,2]
[332631411,1721380232720,-500.0,0.00015994,2]
[332631412,1721380232730,-4091.47099796,0.00016,2]
[332631413,1721380232739,-1676.53,0.00016024,2]
[332631414,1721380232748,-500.0,0.00016082,2]
[332631415,1721380232759,-289.59,0.00016085,2]
[332631416,1721380232769,-255.0,0.00016124,2]
[332631417,1721380232778,-842.78,0.00016124,2]
[332631418,1721380232787,-282.89,0.00016135,2]
[332631419,1721380232796,-2058.16,0.00016152,2]
[332631420,1721380232806,-250.0,0.00016273,2]
[332631421,1721380232815,-2209.85,0.00016284,2]
[332631422,1721380232825,-500.0,0.00016318,2]
[332631423,1721380232834,-200.0,0.00016329,2]
[332631424,1721380232844,-403.57,0.00016339,2]
[332631425,1721380232854,-452.17,0.00016446,5]
[332631426,1721380232863,-559.19,0.00016449,2]
[332631427,1721380232872,-447.13,0.00016451,2]
[332631428,1721380232882,-587.06,0.00016454,2]
[332631429,1721380232891,-150.0,0.0001647,2]
[332631430,1721380232900,-266.0,0.00016523,2]
[332631431,1721380232909,-250.0,0.00016523,2]
[332631432,1721380232919,-679.1,0.00016546,2]
[332631433,1721380232928,-253.79,0.00016548,2]
[332631434,1721380232938,-178.42,0.0001656,2]
[332631435,1721380232949,-200.0,0.00016566,2]
[332631436,1721380232959,-160.27755312,0.00016643,2]
[332631437,1721380232968,-186.27,0.00016743,2]
[332631438,1721380232979,-174.06,0.00016765,2]
[332631439,1721380232989,-1319.23084622,0.00016799,2]
[332631440,1721380232998,-503.87072805,0.00016799,2]
[332631441,1721380233007,-533.36085656,0.00016882,2]
[332631442,1721380233016,-2498.73739198,0.00017,2]
[332631443,1721380233026,-200.0,0.00017,2]
[332631444,1721380233035,-205.39,0.00017087,2]
[332631445,1721380233045,-4061.2449,0.00017096,2]
[332631446,1721380233055,-603.0,0.000173,2]
[332631447,1721380233065,-195.0,0.00017339,2]
[332631448,1721380233074,-2276.0,0.000174,2]
[332631449,1721380233084,-265.02858549,0.00017807,2]
[332631450,1721380233094,-1000.0,0.00017898,2]
[332631451,1721380233103,-173.49,0.00018003,2]
[332631452,1721380233113,-282.89,0.00018152,2]
[332631453,1721380233123,-205.45729962,0.00018176,2]
[332631454,1721380233133,-153.0,0.00018181,2]
[332631455,1721380233142,-153.0,0.00018181,2]
[332631456,1721380233151,-153.0,0.00018181,2]
[332631457,1721380233160,-153.0,0.00018181,2]
[332631458,1721380233169,-153.0,0.00018181,2]
[332631459,1721380233179,-153.0,0.00018181,2]
[332631460,1721380233187,-153.0,0.00018181,2]
[332631461,1721380233200,-153.0,0.00018181,2]
[332631462,1721380233209,-153.0,0.00018181,2]
[332631463,1721380233218,-153.0,0.00018181,2]
[332631464,1721380233228,-153.0,0.00018181,2]
[332631465,1721380233237,-153.0,0.00018181,2]
[332631466,1721380233246,-153.0,0.00018181,2]
[332631467,1721380233256,-153.0,0.00018181,2]
[332631468,1721380233265,-12367.85035857,0.00018182,2]
[332631469,1721380233275,-155.0,0.00018471,2]
[332631470,1721380233284,-266.0,0.00018588,2]
[332631471,1721380233293,-587.06,0.00018718,2]
[332631472,1721380233303,-250.0,0.00019,2]
[332631473,1721380233312,-2325.0,0.00019178,2]
[332631474,1721380233321,-2000.0,0.00019178,2]
[332631475,1721380233330,-366.80013867,0.00019319,2]
[332631476,1721380233339,-17968.5643,0.00019425,2]
[332631477,1721380233348,-561.8624,0.00019425,2]
[332631478,1721380233358,-186.27,0.00019533,2]
[332631479,1721380233367,-82441.59108658,0.00019625,2]
[332631482,1721380237945,-1925.36,0.00013483,2]
[332631483,1721380238002,-1244.28021956,0.00013483,2]
[332631484,1721380238015,-7356.15113365,0.00013483,2]
[332631485,1721380238025,-162.3999725,0.00019525,2]
[332631486,1721380238034,-19469.94889385,0.00019625,2]
[332631487,1721380238046,-1244.38699109,0.00019625,2]
[332631488,1721380238062,-1004.92517502,0.00019625,2]
[332631489,1721380238074,-777.16020434,0.00019625,2]
[332631490,1721380238086,-286.3073085,0.00019625,2]
[332631491,1721380238120,-121698.35034062,0.00019625,2]
[332631492,1721380238130,-2549.5628,0.00019625,2]
[332631493,1721380238139,-507.3073,0.00019625,2]
[332631494,1721380238149,-24559.29,0.00019625,2]
[332631495,1721380238160,-382.2977,0.00019625,2]
[332631496,1721380238170,-12790.35705812,0.00019725,2]
[332631497,1721380238179,-14250.48282443,0.0001981,2]
[332631498,1721380238189,-1000.0,0.00019887,2]
[332631499,1721380238200,-7977.03752392,0.0002,2]
[332631500,1721380238209,-2000.0,0.0002,2]
[332631501,1721380238219,-200.0,0.0002,2]
[332631502,1721380238228,-1192.26858,0.0002,2]
[332631503,1721380238238,-308.544393,0.0002,2]
[332631504,1721380238248,-426.49770039,0.0002012,2]
[332631505,1721380238258,-282.89,0.00020169,2]
[332631506,1721380238267,-404.98336683,0.000202,2]
[332631507,1721380238277,-196.44311796,0.00020439,2]
[332631508,1721380238287,-227.43774807,0.00020588,2]
[332631509,1721380238297,-266.0,0.00020653,2]
[332631510,1721380238306,-207.11080755,0.00020722,2]
[332631511,1721380238318,-10000.0,0.00020799,2]
[332631512,1721380238327,-308.544393,0.00020822,2]
[332631513,1721380238337,-587.06,0.00020982,2]
[332631514,1721380238347,-196.98474805,0.0002099,2]
[332631516,1721380238357,-225251.91194952,0.00021,2]
[332631518,1721380238369,-274748.08805048,0.00021,2]
[332631520,1721380238378,-300.0,0.00021,2]
[332631522,1721380238388,-175.99845235,0.00021214,2]
[332631524,1721380238397,-40276.0,0.00021239,2]
[332631526,1721380238407,-550.941,0.00021314,2]
[332631528,1721380238416,-2164.634,0.00021314,2]
[332631530,1721380238425,-288.25,0.00021314,2]
[332631532,1721380238435,-1651.503,0.00021314,2]
[332631534,1721380238447,-1618.936,0.00021314,2]
[332631536,1721380238456,-1667.0,0.00021314,2]
[332631538,1721380238465,-38329.0,0.00021314,2]
[332631540,1721380238475,-1214.048,0.00021314,2]
[332631542,1721380238485,-157.07,0.00021644,2]
[332631544,1721380238495,-391.14,0.00021644,2]
[332631546,1721380238504,-173.81,0.00021644,2]
[332631548,1721380238513,-154.4,0.00021644,2]
[332631550,1721380238523,-308.544393,0.00021644,2]
[332631552,1721380238532,-1000.0,0.00021875,2]
[332631554,1721380238542,-276.42,0.00021918,2]
[332631556,1721380238551,-5042.51764048,0.00022,14]
[332631558,1721380238560,-282.89,0.00022186,2]
[332631560,1721380238570,-186.27,0.00022324,2]
[332631562,1721380238579,-308.544393,0.00022466,2]
[332631564,1721380238588,-266.0,0.00022718,2]
[332631565,1721380238598,-403.57,0.00022874,2]
[332631567,1721380238608,-438.64822154,0.00022879,2]
[332631568,1721380238617,-209.6944547,0.00022879,2]
[332631569,1721380238627,-350.0,0.00023,2]
[332631570,1721380238637,-587.06,0.00023246,2]
[332631571,1721380238647,-308.544393,0.00023288,2]
[332631572,1721380238656,-7845.7,0.00023368,2]
[332631573,1721380238665,-207.11080752,0.0002377,2]
[332631574,1721380238675,-1000.0,0.00023864,2]
[332631575,1721380238689,-308.544393,0.0002411,2]
[332631576,1721380238702,-401.67620204,0.00024124,2]
[332631577,1721380238711,-282.89,0.00024203,2]
[332631578,1721380238722,-175.99845231,0.0002431,2]
[332631579,1721380238732,-150.0,0.00024314,2]
[332631580,1721380238742,-1667.0,0.00024314,2]
[332631581,1721380238753,-7636.945,0.00024314,2]
[332631582,1721380238766,-1201.0,0.00024314,2]
[332631583,1721380238777,-300.905,0.00024359,2]
[332631584,1721380238789,-266.0,0.00024784,2]
[332631585,1721380238800,-308.544393,0.00024932,2]
[332631586,1721380238811,-205.36,0.00025,7]
[332631587,1721380238822,-211.42425,0.00025,7]
[332631588,1721380238833,-151.501277,0.00025,7]
[332631589,1721380238843,-151.0,0.00025,7]
[332631590,1721380238855,-151.0,0.00025,7]
[332631591,1721380238867,-189.8228,0.00025,7]
[332631592,1721380238879,-156.385269,0.00025,7]
[332631593,1721380238892,-1192.26858,0.00025,2]
[332631594,1721380238903,-152.590354,0.00025,7]
[332631595,1721380238914,-151.874176,0.00025,7]
[332631596,1721380238925,-152.113657,0.00025,7]
[332631597,1721380238936,-151.0,0.00025,7]
[332631598,1721380238953,-151.0,0.00025,7]
[332631599,1721380238964,-400.0,0.00025,2]
[332631600,1721380238976,-157.765267,0.00025,7]
[332631601,1721380238988,-152.234933,0.00025,7]
[332631602,1721380238999,-186.27,0.00025114,120]
[332631603,1721380239010,-174.06,0.00025147,2]
[332631604,1721380239021,-587.06,0.00025509,2]
[332631605,1721380239032,-154.191951,0.00025625,7]
[332631606,1721380239043,-151.0,0.00025625,7]
[332631607,1721380239053,-151.468689,0.00025625,7]
[332631608,1721380239064,-153.63235,0.00025625,7]
[332631609,1721380239074,-151.0,0.00025625,7]
[332631610,1721380239087,-308.544393,0.00025753,2]
[332631611,1721380239098,-174.937446,0.00026011,2]
[332631612,1721380239108,-1179.51206159,0.00026446,28]
[332631613,1721380239118,-308.544393,0.00026575,2]
[332631614,1721380239129,-220.81,0.00026712,2]
[332631615,1721380239140,-200328.61368062,0.000268,2]
[332631616,1721380239754,-420350.01723094,0.000268,2]
[332631617,1721380239766,-1404.30113971,0.000268,2]
[332631618,1721380240046,-492.62763125,0.0002038,2]
[332631619,1721380240056,-428.00827748,0.00020799,2]
[332631620,1721380240376,-478.75263346,0.00020799,2]
[332631621,1721380240435,-1065.24,0.00020799,2]
[332631622,1721380240450,-627.55371207,0.00020799,2]
[332631623,1721380240459,-1073.0,0.00021314,2]
[332631624,1721380240469,-356.60665527,0.00023873,2]
[332631625,1721380240478,-295.141,0.00024314,2]
[332631626,1721380240487,-50574.60230337,0.000268,2]
[332631628,1721380240499,-341.11,0.000268,2]
[332631629,1721380240510,-266.071998,0.000268,2]
[332631642,1721380243033,-155.0,0.00020588,2]
[332631643,1721380243042,-166.85942543,0.000209,2]
[332631644,1721380243051,-204.8957096,0.00026532,2]
[332631648,1721380243873,-329.1042904,0.00026532,2]
[332631649,1721380243883,-171.47398585,0.000268,2]
[332631668,1721380246494,-166.85942541,0.000238,2]
[332631669,1721380246504,-269.70740765,0.000268,2]
[332631670,1721380246737,-1921.18579155,0.000268,2]
[332631692,1721381432164,-216.35502336,0.0001321,2]
[332631693,1721381432175,-355.1515,0.0001331,2]
[332631694,1721381432187,-574.1868,0.000139,2]
[332631695,1721381432196,-300.0,0.00013999,2]
[332631696,1721381432208,-300.0,0.00013999,2]
[332631697,1721381432218,-150.0,0.00013999,2]
[332631698,1721381432227,-277373.51954066,0.00014,2]
[332631699,1721381432258,-4285.64,0.00014,2]
[332631700,1721381432269,-401.61999996,0.00014,2]
[332631701,1721381432280,-904.96532417,0.00014,2]
[332631702,1721381432292,-357.46371413,0.00014,2]
[332631703,1721381432304,-3847.9726488,0.00014,2]
[332631704,1721381432316,-621.1420077,0.00014,2]
[332631705,1721381432343,-428.45648914,0.00014,2]
[332631706,1721381432355,-2186.65209013,0.00014,2]
[332631707,1721381432367,-9718.37881063,0.00014,2]
[332631708,1721381432378,-854.16488114,0.00014,2]
[332631709,1721381432389,-464.47486671,0.00014,2]
[332631710,1721381432400,-1132.38722525,0.00014,2]
[332631711,1721381432411,-4532.68685568,0.00014,2]
[332631712,1721381432425,-681.39069848,0.00014,2]
[332631713,1721381432436,-591.41965906,0.00014,2]
[332631714,1721381432449,-3153.44093,0.00014,2]
[332631715,1721381432460,-653.78731251,0.00014,2]
[332631733,1721381438166,-312047.23421627,0.00014,2]
[332631734,1721381438176,-2351.69030233,0.00014837,2]
[332631735,1721381438186,-3159.05468469,0.00014937,2]
[332631736,1721381438196,-155.33310564,0.00015137,2]
[332631737,1721381438205,-420.0,0.00015337,2]
[332631738,1721381438215,-171.02,0.00016226,2]
[332631739,1721381438224,-200.0,0.0001634,2]
[332631740,1721381438234,-587.0,0.00016802,2]
[332631741,1721381438243,-2351.6903023,0.00016937,2]
[332631742,1721381438253,-3159.05468461,0.00017026,2]
[332631743,1721381438263,-150.99,0.00017808,2]
[332631744,1721381438272,-299.99,0.00018017,4]
[332631745,1721381438282,-8214.06,0.00018017,2]
[332631746,1721381438293,-153.0,0.00018235,2]
[332631747,1721381438303,-153.0,0.00018235,2]
[332631748,1721381438312,-153.0,0.00018235,2]
[332631749,1721381438321,-153.0,0.00018235,2]
[332631750,1721381438331,-823.0,0.00018408,2]
[332631751,1721381438340,-2351.6903023,0.00019037,2]
[332631752,1721381438350,-3159.05468461,0.00019114,2]
[332631753,1721381438359,-602.8882208,0.00019177,2]
[332631754,1721381438369,-210.38217386,0.0001924,2]
[332631755,1721381438378,-268.73174168,0.0001924,2]
[332631756,1721381438388,-265.02858549,0.00019319,2]
[332631757,1721381438398,-5480.94,0.00019451,2]
[332631758,1721381438408,-2380.42,0.00019451,2]
[332631759,1721381438418,-499.99,0.00019451,2]
[332631760,1721381438428,-150.0,0.00019617,2]
[332631761,1721381438438,-250.0,0.00019901,2]
[332631762,1721381438447,-250.0,0.00019906,2]
[332631763,1721381438458,-600.0,0.00020167,2]
[332631764,1721381438467,-155.33310564,0.00021108,2]
[332631765,1721381438477,-494.72284232,0.00021136,2]
[332631766,1721381438530,-1856.96745998,0.00021136,2]
[332631767,1721381438542,-3159.05468461,0.00021203,2]
[332631768,1721381438551,-157.07,0.00021644,2]
[332631769,1721381438562,-371.58,0.00021644,2]
[332631770,1721381438572,-1244.53,0.00022007,2]
[332631771,1721381438582,-2751.0,0.00022152,2]
[332631772,1721381438591,-200.0,0.00022525,2]
[332631773,1721381438601,-1197.0,0.00022594,2]
[332631774,1721381438611,-567.53,0.00022594,2]
[332631775,1721381438622,-1028.7677289,0.00023,7]
[332631776,1721381438633,-230.35,0.00023011,2]
[332631777,1721381438643,-2351.6903023,0.00023236,2]
[332631778,1721381438653,-3159.05468461,0.00023292,2]
[332631779,1721381438664,-285.82,0.00023325,2]
[332631780,1721381438674,-4417.99,0.00023368,2]
[332631781,1721381438684,-9255.41024212,0.00023451,2]
[332631782,1721381438694,-10525.79135321,0.00023873,2]
[332631783,1721381438704,-220.81,0.00024904,2]
[332631784,1721381438715,-1333.73150963,0.00024989,2]
[332631785,1721381438724,-1265.30800411,0.00024996,2]
[332631786,1721381438735,-155.0,0.00024996,2]
[332631787,1721381438745,-155.0,0.00024996,2]
[332631788,1721381438756,-155.0,0.00024996,2]
[332631789,1721381438767,-150.0,0.00024999,2]
[332631790,1721381438777,-2541968.01637287,0.00025,2]
[332631791,1721381438788,-15122.16734889,0.00025,2]
[332631802,1721381440302,-1065.96081933,0.00025,2]
[332631819,1721381446394,-265.02858549,0.0001924,2]
[332631820,1721381446403,-1072.0,0.00022594,2]
[332631821,1721381446413,-10525.79135321,0.00023873,2]
[332631822,1721381446422,-66083.37205745,0.00025,2]
[332631823,1721381446433,-166.85942541,0.0002516,2]
[332631824,1721381446442,-2351.6903023,0.00025336,2]
[332631825,1721381446452,-3159.05468461,0.0002538,2]
[332631826,1721381446461,-227.43774807,0.00025878,5]
[332631827,1721381446471,-227.43774807,0.00025878,5]
[332631828,1721381446480,-220.81,0.0002589,3]
[332631829,1721381446490,-11787.7638215,0.00026,30]
[332631830,1721381446500,-1028.54461161,0.00026264,2]
[332631831,1721381446509,-1027.27504624,0.00026264,2]
[332631832,1721381446519,-1523.009106,0.000267,2]
[332631833,1721381446528,-216.35502335,0.000267,2]